fUST/lending_fUST_20250410
["ID","MTS","AMOUNT","RATE_DAILY","PERIOD"]
[357626855,1744243838103,-500.0,0.00017324,2]
[357626857,1744243838118,-500.0,0.00017324,2]
[357626859,1744243838128,-500.0,0.00017324,2]
[357626862,1744243838138,-500.0,0.00017324,2]
[357626864,1744243838149,-500.0,0.00017324,2]
[357626866,1744243838160,-500.0,0.00017324,2]
[357626868,1744243838170,-500.0,0.00017324,2]
[357626870,1744243838180,-500.0,0.00017324,2]
[357626872,1744243838191,-500.0,0.00017324,2]
[357626874,1744243838200,-24528.28491432,0.00017325,2]
[357626876,1744243838217,-82660.30421538,0.00017325,2]
[357626879,1744243838228,-8341.5,0.00017325,2]
[357627039,1744243840297,-1082.99504255,0.00017325,2]
[357627040,1744243840310,-258.22,0.00017325,2]
[357627041,1744243840396,-1161.52792908,0.00017325,2]
[357627192,1744243843128,-7408.69243,0.00017325,2]
[357627501,1744243846229,-8041.74032372,0.00017325,2]
[357628879,1744244501192,566.5,0.0001733,18]
[357629020,1744245041122,-208.5379223,0.00016169,2]
[357629021,1744245041145,-91.4620777,0.00016169,2]
[357629031,1744245046220,-300.0,0.00016169,2]
[357629032,1744245046234,-2002.3109657,0.00016169,2]
[357629033,1744245046244,-448.6890343,0.00017115,2]
[357629034,1744245611074,151.91,0.00010959,2]
[357629047,1744246232144,-300.0,0.00016899,2]
[357629048,1744246232154,-583.19098981,0.00016999,2]
[357629050,1744246232164,-300.0,0.00016999,2]
[357629052,1744246232174,-49591.20637862,0.00017,2]
[357629054,1744246232184,-211.35724629,0.00017,3]
[357629056,1744246232194,-2000.00000001,0.00017,3]
[357629058,1744246232203,-250.0,0.00017015,2]
[357629060,1744246232214,-250.0,0.000171,2]
[357629062,1744246232224,-250.0,0.000171,2]
[357629064,1744246232233,-250.0,0.000171,2]
[357629067,1744246232243,-250.0,0.000171,2]
[357629069,1744246232253,-250.0,0.000171,2]
[357629071,1744246232262,-250.0,0.000171,2]
[357629073,1744246232272,-250.0,0.000171,2]
[357629075,1744246232282,-250.0,0.000171,2]
[357629077,1744246232291,-250.0,0.000171,2]
[357629078,1744246232301,-250.0,0.000171,2]
[357629080,1744246232310,-250.0,0.000171,2]
[357629081,1744246232320,-151.0,0.00017115,2]
[357629082,1744246232330,-318.0,0.00017115,2]
[357629083,1744246232339,-318.0,0.00017115,2]
[357629085,1744246232349,-200.0,0.00017115,2]
[357629087,1744246232359,-500.0,0.00017124,2]
[357629089,1744246232368,-500.0,0.00017124,2]
[357629090,1744246232378,-500.0,0.00017124,2]
[357629091,1744246232388,-500.0,0.00017124,2]
[357629092,1744246232397,-500.0,0.00017124,2]
[357629093,1744246232408,-500.0,0.00017124,2]
[357629094,1744246232418,-500.0,0.00017124,2]
[357629095,1744246232429,-500.0,0.00017124,2]
[357629096,1744246232438,-500.0,0.00017124,2]
[357629097,1744246232448,-500.0,0.00017124,2]
[357629098,1744246232459,-500.0,0.00017124,2]
[357629099,1744246232469,-445.14598612,0.00017124,2]
[357629100,1744246232490,-54.85401388,0.00017124,2]
[357629101,1744246232500,-500.0,0.00017124,2]
[357629102,1744246232509,-500.0,0.00017124,2]
[357629103,1744246232519,-22748.10925916,0.00017125,2]
[357629124,1744246239270,-500.0,0.00016999,2]
[357629125,1744246239280,-489.04920268,0.00017024,2]
[357629133,1744246243714,-119.59867316,0.00017024,2]
[357629134,1744246243724,-608.64787581,0.00017043,2]
[357629135,1744246243734,-608.64787581,0.00017062,2]
[357629136,1744246243744,-608.64787581,0.0001708,2]
[357629137,1744246243754,-608.64787581,0.00017099,2]
[357629138,1744246243764,-1827.19384074,0.00017125,2]
[357629139,1744246243785,-792.64,0.00017125,2]
[357629170,1744246246425,-4007.47274476,0.00017125,2]
[357629171,1744246246438,-416.12427935,0.00017125,2]
[357629172,1744246246484,-8009.46025948,0.00017125,2]
[357629173,1744246246541,-2206.81400001,0.00017125,2]
[357629178,1744247408134,343.657,0.00025,120]
[357629180,1744247422471,3000.0,0.00015001,2]
[357629207,1744247432546,-250.0,0.00016799,2]
[357629208,1744247432556,-607.96244107,0.00016799,2]
[357629209,1744247432566,-500.0,0.00016799,2]
[357629210,1744247432576,-375.49231452,0.00016799,2]
[357629211,1744247432586,-300.0,0.00016799,2]
[357629212,1744247432596,-300.0,0.00016799,2]
[357629213,1744247432606,-38633.93111001,0.000168,2]
[357629214,1744247432616,-3350.35453747,0.00016815,2]
[357629215,1744247432625,-203.93640968,0.00016915,2]
[357629216,1744247432635,-200.0,0.00017,2]
[357629217,1744247432644,-200.0,0.00017,2]
[357629218,1744247432654,-214.0,0.00017,2]
[357629219,1744247432664,-214.0,0.00017,2]
[357629220,1744247432673,-266.74102057,0.00017015,2]
[357629221,1744247432683,-200.0,0.00017015,2]
[357629222,1744247432693,-500.0,0.00017024,2]
[357629223,1744247432702,-500.0,0.00017024,2]
[357629224,1744247432712,-500.0,0.00017024,2]
[357629225,1744247432721,-500.0,0.00017024,2]
[357629226,1744247432731,-500.0,0.00017024,2]
[357629227,1744247432740,-500.0,0.00017024,2]
[357629228,1744247432749,-500.0,0.00017024,2]
[357629229,1744247432758,-500.0,0.00017024,2]
[357629230,1744247432767,-500.0,0.00017024,2]
[357629231,1744247432776,-500.0,0.00017024,2]
[357629232,1744247432786,-500.0,0.00017024,2]
[357629233,1744247432795,-500.0,0.00017024,2]
[357629234,1744247432804,-500.0,0.00017024,2]
[357629235,1744247432814,-500.0,0.00017024,2]
[357629236,1744247432823,-500.0,0.00017024,2]
[357629237,1744247432832,-500.0,0.00017024,2]
[357629238,1744247432842,-500.0,0.00017024,2]
[357629239,1744247432852,-500.0,0.00017024,2]
[357629240,1744247432862,-500.0,0.00017024,2]
[357629241,1744247432871,-500.0,0.00017024,2]
[357629242,1744247432880,-500.0,0.00017024,2]
[357629243,1744247432889,-500.0,0.00017024,2]
[357629244,1744247432898,-500.0,0.00017024,2]
[357629245,1744247432907,-500.0,0.00017024,2]
[357629246,1744247432916,-14325.65682138,0.00017024,3]
[357629247,1744247432927,-79137.11876123,0.00017024,2]
[357629248,1744247432939,-425.68871941,0.00017024,2]
[357629249,1744247432951,-49012.85040905,0.00017024,2]
[357629260,1744247438635,-1299.0,0.00017024,2]
[357629276,1744247440755,-649.22709406,0.00017024,2]
[357629290,1744247443529,-2439.61091069,0.00017024,2]
[357629291,1744247443541,-450.00106204,0.00017024,2]
[357629292,1744247443554,-1364.26537925,0.00017024,2]
[357629300,1744247446780,-443.970125,0.00017024,2]
[357629303,1744247446797,-19980.75612385,0.00017024,2]
[357629305,1744247446809,-12769.86792295,0.00017024,2]
[357629307,1744247446821,-12533.84778573,0.00017025,3]
[357629308,1744247446830,-837.59699578,0.00017025,3]
[357629309,1744247446840,-269017.3944813,0.00017025,2]
[357629310,1744247446851,-353.0720424,0.00017025,2]
[357629311,1744247446863,-6000.0,0.00017025,2]
[357629312,1744247446875,-4519.94841129,0.00017025,2]
[357629313,1744247706201,500.0,0.00018,10]
[357629314,1744247895200,-184.3913,0.00015935,2]
[357629315,1744247953638,8357.90305162,0.00025,120]
[357629318,1744248312148,-217.05282668,0.00015887,2]
[357629320,1744248324698,208.0,0.00013,2]
[357629321,1744248325340,-208.0,0.00015887,2]
[357629322,1744248326464,-2299.3289,0.00015887,2]
[357629328,1744248364280,-300.0,0.00015886,2]
[357629329,1744248418802,-1054.9368,0.00015787,2]
[357629341,1744248486204,-175.31347148,0.00015787,2]
[357629354,1744248544709,-151.10456751,0.00015787,2]
[357629369,1744248607380,-224.52615328,0.00015787,2]
[357629370,1744248613555,-192.70139468,0.00015787,2]
[357629378,1744248632804,-925.79933973,0.00015787,2]
[357629379,1744248632814,-300.0,0.00015886,2]
[357629380,1744248632824,-550.79934127,0.00015886,2]
[357629381,1744248632835,-22175.61827332,0.00015887,2]
[357629382,1744248632845,-49.9431554,0.00015935,2]
[357629383,1744248632855,-3369.50918037,0.000167,2]
[357629384,1744248632865,-190.6222951,0.00016796,2]
[357629385,1744248632875,-568.68213681,0.00016799,2]
[357629386,1744248632886,-22419.27805903,0.000168,2]
[357629387,1744248632896,-1061.69469511,0.000168,2]
[357629388,1744248632906,-1000.0,0.000168,2]
[357629389,1744248632917,-15008.65700823,0.000168,2]
[357629390,1744248632928,-5334.08537359,0.000168,2]
[357629391,1744248632942,-13205.76228897,0.000168,2]
[357629392,1744248632952,-250.0,0.00016896,2]
[357629393,1744248632962,-313.1573817,0.000169,2]
[357629394,1744248632972,-160.0072415,0.000169,2]
[357629395,1744248632982,-218.7834199,0.000169,2]
[357629396,1744248632992,-200.0,0.00016915,2]
[357629397,1744248633002,-500.0,0.00016924,2]
[357629398,1744248633011,-500.0,0.00016924,2]
[357629399,1744248633021,-500.0,0.00016924,2]
[357629400,1744248633030,-500.0,0.00016924,2]
[357629401,1744248633041,-500.0,0.00016924,2]
[357629402,1744248633052,-500.0,0.00016924,2]
[357629403,1744248633062,-500.0,0.00016924,2]
[357629404,1744248633073,-500.0,0.00016924,2]
[357629405,1744248633083,-500.0,0.00016924,2]
[357629406,1744248633093,-500.0,0.00016924,2]
[357629407,1744248633103,-500.0,0.00016924,2]
[357629408,1744248633113,-500.0,0.00016924,2]
[357629409,1744248633123,-160.85004227,0.00016924,2]
[357629410,1744248633134,-370000.0,0.00016925,2]
[357629411,1744248633144,-554.39399,0.00016996,2]
[357629412,1744248633154,-4174.0,0.00017,2]
[357629413,1744248633164,-1650.0,0.00017,2]
[357629414,1744248633174,-151.0,0.00017024,2]
[357629415,1744248633184,-151.0,0.00017024,2]
[357629416,1744248633194,-476.88671875,0.00017024,2]
[357629417,1744248633203,-500.0,0.00017024,2]
[357629418,1744248633213,-500.0,0.00017024,2]
[357629419,1744248633224,-500.0,0.00017024,2]
[357629420,1744248633234,-500.0,0.00017024,2]
[357629421,1744248633244,-500.0,0.00017024,2]
[357629422,1744248633254,-500.0,0.00017024,2]
[357629423,1744248633264,-500.0,0.00017024,2]
[357629424,1744248633274,-500.0,0.00017024,2]
[357629425,1744248633283,-500.0,0.00017024,2]
[357629426,1744248633293,-500.0,0.00017024,2]
[357629427,1744248633304,-500.0,0.00017024,2]
[357629428,1744248633314,-151.0,0.00017025,2]
[357629429,1744248633324,-151.0,0.00017025,2]
[357629430,1744248633334,-151.0,0.00017025,2]
[357629431,1744248633344,-151.0,0.00017025,2]
[357629432,1744248633353,-151.0,0.00017025,2]
[357629433,1744248633363,-151.0,0.00017025,2]
[357629434,1744248633373,-151.0,0.00017025,2]
[357629435,1744248633382,-151.0,0.00017025,2]
[357629436,1744248633392,-151.0,0.00017025,2]
[357629437,1744248633402,-151.0,0.00017025,2]
[357629438,1744248633412,-151.0,0.00017025,2]
[357629439,1744248633422,-151.0,0.00017025,2]
[357629440,1744248633432,-151.0,0.00017025,2]
[357629441,1744248633441,-175.561691,0.00017025,2]
[357629442,1744248633451,-151.0,0.00017025,2]
[357629443,1744248633461,-151.0,0.00017025,2]
[357629444,1744248633471,-151.0,0.00017025,2]
[357629445,1744248633480,-151.0,0.00017025,2]
[357629446,1744248633490,-151.0,0.00017025,2]
[357629447,1744248633499,-151.0,0.00017025,2]
[357629448,1744248633508,-151.0,0.00017025,2]
[357629449,1744248633518,-151.0,0.00017025,2]
[357629450,1744248633528,-151.0,0.00017025,2]
[357629451,1744248633538,-151.0,0.00017025,2]
[357629452,1744248633548,-151.0,0.00017025,2]
[357629453,1744248633558,-151.0,0.00017025,2]
[357629454,1744248633567,-216.908974,0.00017025,2]
[357629455,1744248633578,-151.0,0.00017025,2]
[357629456,1744248633588,-170.968575,0.00017025,2]
[357629457,1744248633597,-151.0,0.00017025,2]
[357629458,1744248633607,-151.0,0.00017025,2]
[357629459,1744248633616,-151.0,0.00017025,2]
[357629460,1744248633626,-151.0,0.00017025,2]
[357629461,1744248633640,-151.0,0.00017025,2]
[357629462,1744248633650,-151.0,0.00017025,2]
[357629463,1744248633659,-209.799261,0.00017025,2]
[357629464,1744248633669,-151.0,0.00017025,2]
[357629465,1744248633679,-151.0,0.00017025,2]
[357629466,1744248633689,-151.0,0.00017025,2]
[357629467,1744248633700,-263.451064,0.00017025,2]
[357629468,1744248633714,-151.0,0.00017025,2]
[357629469,1744248633724,-151.0,0.00017025,2]
[357629470,1744248633734,-189.119298,0.00017025,2]
[357629471,1744248633746,-151.0,0.00017025,2]
[357629472,1744248633758,-151.0,0.00017025,2]
[357629473,1744248633768,-200.903275,0.00017025,2]
[357629474,1744248633778,-200.903275,0.00017025,2]
[357629475,1744248633787,-200.903275,0.00017025,2]
[357629476,1744248633798,-200.903275,0.00017025,2]
[357629477,1744248633809,-200.903275,0.00017025,2]
[357629478,1744248633818,-200.903275,0.00017025,2]
[357629479,1744248633827,-151.0,0.00017025,2]
[357629480,1744248633838,-200.903275,0.00017025,2]
[357629481,1744248633848,-200.903275,0.00017025,2]
[357629482,1744248633858,-200.903275,0.00017025,2]
[357629483,1744248633868,-200.903275,0.00017025,2]
[357629484,1744248633878,-200.903275,0.00017025,2]
[357629485,1744248633889,-200.903275,0.00017025,2]
[357629486,1744248633900,-151.0,0.00017025,2]
[357629487,1744248633911,-698.699292,0.00017025,2]
[357629488,1744248633921,-698.699292,0.00017025,2]
[357629489,1744248633930,-333.83282,0.00017025,2]
[357629490,1744248633942,-333.83282,0.00017025,2]
[357629491,1744248634089,-151.0,0.00017025,2]
[357629492,1744248634100,-273.995482,0.00017025,2]
[357629493,1744248634110,-273.995482,0.00017025,2]
[357629494,1744248634120,-1592.295725,0.00017025,2]
[357629495,1744248634130,-346.934518,0.00017025,2]
[357629496,1744248634140,-1592.295725,0.00017025,2]
[357629497,1744248634150,-346.934518,0.00017025,2]
[357629498,1744248634160,-151.0,0.00017025,2]
[357629499,1744248634170,-151.0,0.00017025,2]
[357629500,1744248634180,-151.0,0.00017025,2]
[357629501,1744248634190,-246.43772964,0.00017025,2]
[357629502,1744248634201,-500.0,0.00017072,2]
[357629503,1744248634213,-500.0,0.00017072,2]
[357629504,1744248634224,-500.0,0.00017072,2]
[357629505,1744248634234,-500.0,0.00017072,2]
[357629506,1744248634244,-500.0,0.00017072,2]
[357629507,1744248634256,-500.0,0.00017073,2]
[357629508,1744248634266,-168.522028,0.00017073,2]
[357629509,1744248634277,-151.0,0.00017073,2]
[357629510,1744248634287,-151.0,0.00017073,2]
[357629511,1744248634297,-151.0,0.00017073,2]
[357629512,1744248634308,-151.0,0.00017073,2]
[357629513,1744248634317,-151.0,0.00017073,2]
[357629514,1744248634327,-151.0,0.00017073,2]
[357629515,1744248634337,-579.204026,0.00017073,2]
[357629516,1744248634347,-151.0,0.00017073,2]
[357629517,1744248634357,-151.0,0.00017073,2]
[357629518,1744248634366,-151.0,0.00017073,2]
[357629519,1744248634376,-183.126234,0.00017073,2]
[357629520,1744248634386,-151.0,0.00017073,2]
[357629521,1744248634396,-200.903275,0.00017073,2]
[357629522,1744248634406,-200.903275,0.00017073,2]
[357629523,1744248634416,-151.0,0.00017073,2]
[357629524,1744248634425,-200.903275,0.00017073,2]
[357629525,1744248634435,-200.903275,0.00017073,2]
[357629526,1744248634445,-175.355252,0.00017073,2]
[357629527,1744248634455,-698.699292,0.00017073,2]
[357629528,1744248634465,-175.355252,0.00017073,2]
[357629529,1744248634475,-698.699292,0.00017073,2]
[357629530,1744248634485,-333.83282,0.00017073,2]
[357629531,1744248634495,-151.0,0.00017073,2]
[357629532,1744248634505,-333.83282,0.00017073,2]
[357629533,1744248634515,-151.0,0.00017073,2]
[357629534,1744248634524,-151.0,0.00017073,2]
[357629535,1744248634534,-151.0,0.00017073,2]
[357629536,1744248634543,-1186.048814,0.00017073,2]
[357629537,1744248634554,-1186.048814,0.00017073,2]
[357629538,1744248634563,-273.995482,0.00017073,2]
[357629539,1744248634573,-273.995482,0.00017073,2]
[357629540,1744248634583,-151.0,0.00017073,2]
[357629541,1744248634593,-609.845329,0.00017073,2]
[357629542,1744248634603,-572.992553,0.00017073,2]
[357629543,1744248634612,-609.845329,0.00017073,2]
[357629544,1744248634623,-572.992553,0.00017073,2]
[357629545,1744248634633,-163.171514,0.00017073,2]
[357629546,1744248634642,-163.171514,0.00017073,2]
[357629547,1744248634652,-1592.295725,0.00017073,2]
[357629548,1744248634661,-346.934518,0.00017073,2]
[357629549,1744248634671,-1592.295725,0.00017073,2]
[357629550,1744248634680,-346.934518,0.00017073,2]
[357629551,1744248634690,-151.0,0.00017073,2]
[357629552,1744248634699,-151.0,0.00017073,2]
[357629553,1744248634709,-151.0,0.00017073,2]
[357629554,1744248634721,-151.0,0.00017073,2]
[357629555,1744248634730,-151.0,0.00017073,2]
[357629556,1744248634740,-151.0,0.00017073,2]
[357629557,1744248634751,-151.0,0.00017073,2]
[357629558,1744248634761,-151.0,0.00017073,2]
[357629559,1744248634771,-151.0,0.00017073,2]
[357629560,1744248634780,-151.0,0.00017073,2]
[357629561,1744248634791,-151.0,0.00017073,2]
[357629562,1744248634806,-151.0,0.00017073,2]
[357629563,1744248634816,-263.079909,0.00017073,2]
[357629564,1744248634826,-151.0,0.00017073,2]
[357629565,1744248634836,-579.204026,0.00017115,2]
[357629566,1744248634845,-151.0,0.00017115,2]
[357629567,1744248634855,-151.0,0.00017115,2]
[357629568,1744248634864,-151.0,0.00017115,2]
[357629569,1744248634874,-157.252656,0.00017124,2]
[357629570,1744248634883,-234.50830488,0.00017124,2]
[357629571,1744248634893,-244.86193605,0.00017124,2]
[357629572,1744248634902,-151.0,0.00017124,2]
[357629573,1744248634912,-151.0,0.00017124,2]
[357629574,1744248634922,-240.955777,0.00017124,2]
[357629575,1744248634931,-240.955777,0.00017124,2]
[357629576,1744248634941,-937.6098,0.00017125,2]
[357629577,1744248634951,-151.0,0.0001716,2]
[357629578,1744248634961,-151.0,0.0001716,2]
[357629579,1744248634971,-500.0,0.00017197,2]
[357629580,1744248634980,-500.0,0.00017197,2]
[357629581,1744248634989,-500.0,0.00017197,2]
[357629582,1744248634999,-500.0,0.00017197,2]
[357629583,1744248635008,-500.0,0.00017197,2]
[357629584,1744248635018,-500.0,0.00017197,2]
[357629585,1744248635028,-500.0,0.00017197,2]
[357629586,1744248635037,-500.0,0.00017197,2]
[357629587,1744248635047,-500.0,0.00017197,2]
[357629588,1744248635057,-500.0,0.00017197,2]
[357629589,1744248635067,-500.0,0.00017198,2]
[357629590,1744248635077,-500.0,0.00017198,2]
[357629591,1744248635087,-500.0,0.00017198,2]
[357629592,1744248635097,-500.0,0.00017198,2]
[357629593,1744248635107,-500.0,0.00017198,2]
[357629594,1744248635116,-500.0,0.00017198,2]
[357629595,1744248635125,-500.0,0.00017198,2]
[357629596,1744248635135,-500.0,0.00017198,2]
[357629597,1744248635144,-500.0,0.00017198,2]
[357629598,1744248635154,-500.0,0.00017198,2]
[357629599,1744248635164,-151.0,0.00017198,2]
[357629600,1744248635174,-151.0,0.00017198,2]
[357629601,1744248635184,-151.0,0.00017198,2]
[357629602,1744248635193,-83986.17825377,0.00017199,2]
[357629603,1744248635203,-7162.82841069,0.00017199,3]
[357629604,1744248635213,-151.0,0.00017199,2]
[357629605,1744248635223,-151.0,0.00017199,2]
[357629606,1744248635233,-151.0,0.00017199,2]
[357629607,1744248635242,-151.0,0.00017199,2]
[357629608,1744248635252,-1121.563287,0.00017199,2]
[357629609,1744248635262,-151.0,0.00017199,2]
[357629610,1744248635271,-236.247001,0.00017199,2]
[357629611,1744248635281,-579.204026,0.00017199,2]
[357629612,1744248635290,-151.0,0.00017199,2]
[357629613,1744248635300,-151.0,0.00017199,2]
[357629614,1744248635310,-151.0,0.00017199,2]
[357629615,1744248635320,-200.903275,0.00017199,2]
[357629616,1744248635330,-200.903275,0.00017199,2]
[357629617,1744248635339,-151.0,0.00017199,2]
[357629618,1744248635349,-200.903275,0.00017199,2]
[357629619,1744248635359,-200.903277,0.00017199,2]
[357629620,1744248635369,-175.355252,0.00017199,2]
[357629621,1744248635379,-698.699292,0.00017199,2]
[357629622,1744248635389,-175.355252,0.00017199,2]
[357629623,1744248635399,-698.699292,0.00017199,2]
[357629624,1744248635409,-333.83282,0.00017199,2]
[357629625,1744248635419,-151.0,0.00017199,2]
[357629626,1744248635429,-333.83282,0.00017199,2]
[357629627,1744248635439,-151.0,0.00017199,2]
[357629628,1744248635449,-151.0,0.00017199,2]
[357629629,1744248635459,-195.726739,0.00017199,2]
[357629630,1744248635469,-1186.048814,0.00017199,2]
[357629631,1744248635478,-1186.048814,0.00017199,2]
[357629632,1744248635488,-273.995482,0.00017199,2]
[357629633,1744248635498,-273.995482,0.00017199,2]
[357629634,1744248635507,-151.0,0.00017199,2]
[357629635,1744248635518,-151.0,0.00017199,2]
[357629636,1744248635527,-609.845329,0.00017199,2]
[357629637,1744248635537,-572.992553,0.00017199,2]
[357629638,1744248635547,-609.845329,0.00017199,2]
[357629639,1744248635665,-572.992553,0.00017199,2]
[357629640,1744248635676,-163.171514,0.00017199,2]
[357629641,1744248635686,-163.171514,0.00017199,2]
[357629642,1744248635696,-151.0,0.00017199,2]
[357629643,1744248635706,-151.0,0.00017199,2]
[357629644,1744248635717,-151.0,0.00017199,2]
[357629645,1744248635728,-151.0,0.00017199,2]
[357629646,1744248635738,-1592.295725,0.00017199,2]
[357629647,1744248635747,-346.934518,0.00017199,2]
[357629648,1744248635758,-1592.295725,0.00017199,2]
[357629649,1744248635767,-346.934518,0.00017199,2]
[357629650,1744248635776,-151.0,0.00017199,2]
[357629651,1744248635786,-151.0,0.00017199,2]
[357629652,1744248635796,-151.0,0.00017199,2]
[357629653,1744248635806,-151.0,0.00017199,2]
[357629654,1744248635815,-151.0,0.00017199,2]
[357629655,1744248635825,-151.0,0.00017199,2]
[357629656,1744248635834,-151.0,0.00017199,2]
[357629657,1744248635844,-151.0,0.00017199,2]
[357629658,1744248635854,-240.955777,0.00017199,2]
[357629659,1744248635864,-240.955777,0.00017199,2]
[357629660,1744248635873,-151.0,0.00017199,2]
[357629661,1744248635883,-151.0,0.00017199,2]
[357629662,1744248635893,-151.0,0.00017199,2]
[357629663,1744248635902,-151.0,0.00017199,2]
[357629664,1744248635912,-151.0,0.00017199,2]
[357629665,1744248635922,-500.0,0.00017199,2]
[357629666,1744248635931,-500.0,0.00017199,2]
[357629667,1744248635941,-500.0,0.00017199,2]
[357629668,1744248635951,-500.0,0.00017199,2]
[357629669,1744248635960,-500.0,0.00017199,2]
[357629670,1744248635970,-500.0,0.00017199,2]
[357629671,1744248635979,-500.0,0.00017199,2]
[357629672,1744248635989,-500.0,0.00017199,2]
[357629673,1744248635999,-500.0,0.00017199,2]
[357629674,1744248636008,-500.0,0.00017199,2]
[357629675,1744248636018,-19973.17055072,0.000172,2]
[357629676,1744248636027,-16611.34553722,0.000172,2]
[357629685,1744248641187,-0.00277613,0.000167,2]
[357629686,1744248641199,-196.38941892,0.000167,2]
[357629687,1744248641209,-234.75551798,0.00017124,2]
[357629688,1744248641219,-234.75551798,0.00017124,2]
[357629689,1744248641228,-244.90721223,0.00017124,2]
[357629690,1744248641238,-4590.12813969,0.000172,2]
[357629691,1744248641248,-151.0,0.000172,2]
[357629692,1744248641257,-151.0,0.000172,2]
[357629693,1744248641267,-151.0,0.000172,2]
[357629694,1744248641277,-151.0,0.000172,2]
[357629695,1744248641287,-151.0,0.000172,2]
[357629696,1744248641297,-151.0,0.000172,2]
[357629697,1744248641308,-151.0,0.000172,2]
[357629698,1744248641318,-1121.563287,0.000172,2]
[357629699,1744248641328,-1121.563287,0.000172,2]
[357629700,1744248641557,-151.0,0.000172,2]
[357629701,1744248641568,-151.0,0.000172,2]
[357629702,1744248641578,-151.0,0.000172,2]
[357629703,1744248641588,-579.204026,0.000172,2]
[357629704,1744248641598,-579.204026,0.000172,2]
[357629705,1744248641608,-579.204035,0.000172,2]
[357629706,1744248641618,-151.0,0.000172,2]
[357629707,1744248641628,-151.0,0.000172,2]
[357629708,1744248641637,-151.0,0.000172,2]
[357629709,1744248641647,-151.0,0.000172,2]
[357629710,1744248641657,-151.0,0.000172,2]
[357629711,1744248641667,-151.0,0.000172,2]
[357629712,1744248641677,-151.0,0.000172,2]
[357629713,1744248641687,-191.39792,0.000172,2]
[357629714,1744248641697,-175.355252,0.000172,2]
[357629715,1744248641707,-175.355252,0.000172,2]
[357629716,1744248641722,-698.699292,0.000172,2]
[357629717,1744248641732,-698.699292,0.000172,2]
[357629718,1744248641742,-175.355252,0.000172,2]
[357629719,1744248641751,-175.355252,0.000172,2]
[357629720,1744248641763,-698.699292,0.000172,2]
[357629721,1744248641773,-698.699292,0.000172,2]
[357629722,1744248641784,-333.83282,0.000172,2]
[357629723,1744248641797,-333.83282,0.000172,2]
[357629724,1744248641808,-232.896658,0.000172,2]
[357629725,1744248641819,-333.83282,0.000172,2]
[357629726,1744248641829,-333.83282,0.000172,2]
[357629727,1744248641840,-213.3779527,0.000172,2]
[357629728,1744248641850,-564.3717366,0.000172,2]
[357629729,1744248641861,-151.0,0.000172,2]
[357629730,1744248641871,-151.0,0.000172,2]
[357629731,1744248641882,-151.0,0.000172,2]
[357629732,1744248641893,-151.0,0.000172,2]
[357629733,1744248641903,-1186.048814,0.000172,2]
[357629734,1744248641913,-1186.048814,0.000172,2]
[357629735,1744248641923,-500.0,0.000172,2]
[357629736,1744248641933,-259.63903811,0.000172,2]
[357629737,1744248641944,-347.57514279,0.000172,2]
[357629738,1744248641957,-152.42485721,0.000172,2]